fUST/lending_fUST_20260215
["ID","MTS","AMOUNT","RATE_DAILY","PERIOD"]
[405390008,1771134648627,-500.0,0.00017,2]
[405390009,1771134648637,-151.0,0.00017,2]
[405390010,1771134648646,-153.0,0.00017,2]
[405390011,1771134648655,-500.0,0.00017274,2]
[405390012,1771134648664,-420.0,0.00017491,2]
[405390013,1771134648673,-500.0,0.00017548,2]
[405390014,1771134648682,-150.0,0.00017562,2]
[405390015,1771134648691,-187.00031284,0.00017562,2]
[405390016,1771134648700,-150.0,0.00017562,2]
[405390017,1771134648710,-500.0,0.00017562,2]
[405390018,1771134648720,-500.0,0.00017562,2]
[405390019,1771134648729,-150.0,0.00017617,2]
[405390020,1771134648739,-150.0,0.00017617,2]
[405390021,1771134648747,-500.0,0.00017617,2]
[405390022,1771134648757,-500.0,0.00017617,2]
[405390023,1771134648768,-177.0,0.00017633,2]
[405390024,1771134648779,-150.0,0.00017672,2]
[405390025,1771134648790,-150.0,0.00017672,2]
[405390026,1771134648799,-500.0,0.00017672,2]
[405390027,1771134648809,-500.0,0.00017672,2]
[405390028,1771134648820,-150.0,0.00017726,2]
[405390029,1771134648829,-180.877447,0.00017726,2]
[405390030,1771134648840,-162.92012363,0.00017726,2]
[405390031,1771134648849,-500.0,0.00017726,2]
[405390032,1771134648858,-178.76119084,0.00017781,2]
[405390033,1771134648867,-500.0,0.00017822,2]
[405390034,1771134648876,-500.0,0.00017835,2]
[405390035,1771134648886,-515.4345814,0.00017835,2]
[405390036,1771134648895,-156.86,0.00017935,2]
[405390037,1771134648904,-500.0,0.00017935,2]
[405390038,1771134648915,-500.0,0.00017935,2]
[405390039,1771134648925,-628.29,0.0001799,3]
[405390040,1771134648935,-314.14,0.0001799,3]
[405390041,1771134648944,-157.07,0.0001799,3]
[405390042,1771134648954,-471.26,0.0001799,3]
[405390043,1771134648963,-303.65303387,0.00017999,2]
[405390044,1771134648973,-388.78863945,0.00017999,2]
[405390045,1771134648982,-699.81955101,0.00017999,2]
[405390046,1771134648991,-500.0,0.00017999,2]
[405390047,1771134649001,-500.0,0.00017999,2]
[405390048,1771134649011,-1244.12364625,0.00017999,2]
[405390049,1771134649020,-1943.94319726,0.00017999,2]
[405390050,1771134649029,-302.41447567,0.00017999,2]
[405390051,1771134649040,-388.19003414,0.00017999,2]
[405390052,1771134649049,-315.34562229,0.00017999,2]
[405390053,1771134649058,-165.85621883,0.00017999,2]
[405390054,1771134649068,-6299.34954259,0.00018,2]
[405390059,1771135074329,1000.0,0.00030136,120]
[405390060,1771135203214,189.26494291,0.0002944,120]
[405390061,1771135226170,3600.95937759,0.000165,3]
[405390062,1771135234299,323.90789485,0.000165,3]
[405390063,1771135506742,-1014.66894616,0.00042392,120]
[405390064,1771135506771,-150.79104867,0.00042392,30]
[405390065,1771135506795,-1100.43971887,0.00042392,120]
[405390066,1771135506822,-256.16738057,0.00042392,120]
[405390067,1771135506846,-939.64835069,0.00042392,30]
[405390068,1771135506870,-724.54393241,0.00042392,120]
[405390069,1771135506894,-983.90088142,0.00042392,30]
[405390070,1771135506918,-5000.0,0.00042392,120]
[405390071,1771135506942,-4489.0,0.00042392,120]
[405390072,1771135506966,-257.0,0.00042392,120]
[405390073,1771135506989,-1000.0,0.00042392,120]
[405390074,1771135507014,-1000.0,0.00042392,120]
[405390075,1771135507039,-1000.0,0.00042392,120]
[405390076,1771135507065,-1000.0,0.00042392,120]
[405390077,1771135507090,-770.6156667,0.00042392,120]
[405390078,1771135507115,-294499.18067322,0.00042392,30]
[405390079,1771135507142,-210.72691024,0.00042392,120]
[405390080,1771135507166,-179.19552155,0.00042392,30]
[405390081,1771135507190,-152.13275987,0.00042392,30]
[405390082,1771135507213,-767.6186944,0.00042392,30]
[405390083,1771135507237,-556.35648425,0.00042392,120]
[405390084,1771135507262,-627.0,0.00042392,120]
[405390085,1771135507286,-6404.84,0.00042392,45]
[405390086,1771135507312,-710.76105046,0.00042392,30]
[405390087,1771135507336,-10000.0,0.00042392,31]
[405390088,1771135507359,-10000.0,0.00042392,31]
[405390089,1771135507384,-10000.0,0.00042392,31]
[405390090,1771135507408,-10000.0,0.00042392,31]
[405390091,1771135507432,-10000.0,0.00042392,31]
[405390092,1771135507454,-312.0000842,0.00042392,120]
[405390093,1771135507478,-75250.42115989,0.00042392,30]
[405390094,1771135507501,-1122599.79,0.00042392,120]
[405390095,1771135507525,-2005755.56875034,0.00042392,30]
[405390096,1771135507552,-5783.0,0.00042392,30]
[405390097,1771135507578,-303.0,0.00042392,120]
[405390098,1771135507602,-249.02315472,0.00042392,118]
[405390099,1771135507626,-200.0,0.00042392,118]
[405390100,1771135507650,-415752.60883137,0.00042392,120]
[405390118,1771135831566,-272.09272872,0.00016266,2]
[405390121,1771135831576,-150.0,0.00016316,2]
[405390124,1771135831586,-900.34127128,0.00016441,2]
[405390129,1771135831610,-99.65872872,0.00016441,2]
[405390131,1771135831620,-476.922148,0.00016465,2]
[405390133,1771135831630,-116.48438733,0.00016495,2]
[405390135,1771135831644,-393.46885527,0.00016495,2]
[405390137,1771135831655,-186.9532786,0.00016515,2]
[405390139,1771135831665,-129.91042605,0.00016547,2]
[405390152,1771135837702,-3154.05676425,0.00016547,2]
[405390153,1771135837713,-376.1344312,0.00016579,2]
[405390154,1771135837724,-300.0,0.00016924,2]
[405390155,1771135837733,-300.0,0.00016963,2]
[405390156,1771135837743,-548.07154856,0.00016964,7]
[405390157,1771135837753,-671.51799126,0.00016964,7]
[405390158,1771135837766,-333.16277882,0.00016964,7]
[405390159,1771135837775,-500.0,0.00017824,2]
[405390160,1771135837785,-309.9357962,0.00017824,2]
[405390161,1771135837794,-563.30571013,0.00017824,2]
[405390162,1771135837805,-6756.9090591,0.00017825,2]
[405390163,1771135837815,-698.74206146,0.0001783,2]
[405390164,1771135837824,-1242.20810926,0.0001783,2]
[405390165,1771135837834,-191.69289865,0.0001783,2]
[405390166,1771135837846,-345.04721757,0.0001783,2]
[405390167,1771135837856,-613.41727568,0.0001783,2]
[405390168,1771135837866,-567.62212012,0.00017832,2]
[405390169,1771135837876,-1009.10599132,0.00017832,2]
[405390170,1771135837886,-298.2426527,0.00017832,2]
[405390171,1771135837896,-7376.4262424,0.000179,2]
[405390172,1771135837905,-500.0,0.00017999,2]
[405390173,1771135837915,-26527.07917833,0.00018,2]
[405390174,1771135837925,-258.88,0.00018,2]
[405390175,1771135837935,-500.0,0.00018169,2]
[405390176,1771135837944,-177.0,0.00018316,2]
[405390177,1771135837954,-2826.244625,0.00018368,2]
[405390178,1771135837964,-1226.83994588,0.00018395,2]
[405390179,1771135837973,-420.0,0.00018528,2]
[405390180,1771135837984,-426.31219432,0.00018599,2]
[405390181,1771135837993,-494.52539816,0.000186,2]
[405390182,1771135838003,-153.0,0.000186,2]
[405390183,1771135838012,-350.0,0.000186,2]
[405390184,1771135838022,-166.0,0.000186,2]
[405390185,1771135838032,-153.0,0.000186,2]
[405390186,1771135838041,-350.0,0.000186,2]
[405390187,1771135838051,-166.0,0.000186,2]
[405390188,1771135838060,-153.0,0.000186,2]
[405390189,1771135838070,-350.0,0.000186,2]
[405390190,1771135838079,-166.0,0.000186,2]
[405390191,1771135838088,-153.0,0.000186,2]
[405390192,1771135838102,-350.0,0.000186,2]
[405390193,1771135838111,-166.0,0.000186,2]
[405390194,1771135838121,-153.0,0.000186,2]
[405390195,1771135838131,-350.0,0.000186,2]
[405390196,1771135838141,-166.0,0.000186,2]
[405390197,1771135838151,-153.0,0.000186,2]
[405390198,1771135838160,-350.0,0.000186,2]
[405390199,1771135838170,-166.0,0.000186,2]
[405390200,1771135838180,-153.0,0.000186,2]
[405390201,1771135838189,-350.0,0.000186,2]
[405390202,1771135838199,-166.0,0.000186,2]
[405390203,1771135838209,-153.0,0.000186,2]
[405390204,1771135838219,-350.0,0.000186,2]
[405390205,1771135838229,-172.0,0.000186,2]
[405390206,1771135838239,-153.0,0.000186,2]
[405390207,1771135838249,-350.0,0.000186,2]
[405390208,1771135838258,-153.0,0.000186,2]
[405390209,1771135838268,-350.0,0.000186,2]
[405390210,1771135838279,-350.0,0.000186,2]
[405390211,1771135838288,-153.0,0.000186,2]
[405390212,1771135838299,-350.0,0.000186,2]
[405390213,1771135838309,-153.0,0.000186,2]
[405390214,1771135838318,-350.0,0.000186,2]
[405390215,1771135838328,-153.0,0.000186,2]
[405390216,1771135838338,-350.0,0.000186,2]
[405390217,1771135838499,-153.0,0.000186,2]
[405390218,1771135838509,-350.0,0.000186,2]
[405390219,1771135838518,-153.0,0.000186,2]
[405390220,1771135838528,-350.0,0.000186,2]
[405390221,1771135838537,-153.0,0.000186,2]
[405390222,1771135838547,-350.0,0.000186,2]
[405390223,1771135838556,-153.0,0.000186,2]
[405390224,1771135838566,-153.0,0.000186,2]
[405390225,1771135838575,-350.0,0.000186,2]
[405390226,1771135838584,-248.66143625,0.000186,2]
[405390227,1771135838593,-350.0,0.000186,2]
[405390228,1771135838605,-350.0,0.000186,2]
[405390229,1771135838616,-350.0,0.000186,2]
[405390230,1771135838625,-350.0,0.000186,2]
[405390231,1771135838635,-336.0,0.000186,2]
[405390232,1771135838646,-350.0,0.000186,2]
[405390233,1771135838655,-336.0,0.000186,2]
[405390234,1771135838665,-350.0,0.000186,2]
[405390235,1771135838674,-336.0,0.000186,2]
[405390236,1771135838686,-336.0,0.000186,2]
[405390237,1771135838696,-336.0,0.000186,2]
[405390238,1771135838705,-350.0,0.000186,2]
[405390239,1771135838715,-336.0,0.000186,2]
[405390240,1771135838724,-350.0,0.000186,2]
[405390241,1771135838734,-336.0,0.000186,2]
[405390242,1771135838744,-336.0,0.000186,2]
[405390243,1771135838753,-350.0,0.000186,2]
[405390244,1771135838762,-336.0,0.000186,2]
[405390245,1771135838771,-350.0,0.000186,2]
[405390246,1771135838781,-350.0,0.000186,2]
[405390247,1771135838790,-336.0,0.000186,2]
[405390248,1771135838799,-336.0,0.000186,2]
[405390249,1771135838809,-350.0,0.000186,2]
[405390250,1771135838818,-336.0,0.000186,2]
[405390251,1771135838827,-350.0,0.000186,2]
[405390252,1771135838837,-336.0,0.000186,2]
[405390253,1771135838846,-350.0,0.000186,2]
[405390254,1771135838855,-336.0,0.000186,2]
[405390255,1771135838865,-350.0,0.000186,2]
[405390256,1771135838875,-336.0,0.000186,2]
[405390257,1771135838884,-350.0,0.000186,2]
[405390258,1771135838894,-336.0,0.000186,2]
[405390259,1771135838903,-350.0,0.000186,2]
[405390260,1771135838912,-336.0,0.000186,2]
[405390261,1771135838922,-350.0,0.000186,2]
[405390262,1771135838931,-350.0,0.000186,2]
[405390263,1771135838941,-336.0,0.000186,2]
[405390264,1771135838951,-336.0,0.000186,2]
[405390265,1771135838961,-350.0,0.000186,2]
[405390266,1771135838971,-336.0,0.000186,2]
[405390267,1771135838980,-350.0,0.000186,2]
[405390268,1771135838990,-336.0,0.000186,2]
[405390269,1771135838999,-350.0,0.000186,2]
[405390270,1771135839008,-350.0,0.000186,2]
[405390271,1771135839018,-336.0,0.000186,2]
[405390272,1771135839027,-336.0,0.000186,2]
[405390273,1771135839037,-350.0,0.000186,2]
[405390274,1771135839047,-350.0,0.000186,2]
[405390275,1771135839056,-336.0,0.000186,2]
[405390276,1771135839066,-350.0,0.000186,2]
[405390277,1771135839086,-336.0,0.000186,2]
[405390278,1771135839096,-350.0,0.000186,2]
[405390279,1771135839106,-336.0,0.000186,2]
[405390280,1771135839116,-492.41172793,0.000186,2]
[405390281,1771135839127,-336.0,0.000186,2]
[405390282,1771135839139,-336.0,0.000186,2]
[405390283,1771135839150,-336.0,0.000186,2]
[405390284,1771135839161,-336.0,0.000186,2]
[405390285,1771135839171,-336.0,0.000186,2]
[405390286,1771135839182,-336.0,0.000186,2]
[405390287,1771135839192,-336.0,0.000186,2]
[405390288,1771135839202,-336.0,0.000186,2]
[405390289,1771135839212,-336.0,0.000186,2]
[405390290,1771135839222,-336.0,0.000186,2]
[405390291,1771135839232,-336.0,0.000186,2]
[405390292,1771135839242,-336.0,0.000186,2]
[405390293,1771135839251,-336.0,0.000186,2]
[405390294,1771135839262,-336.0,0.000186,2]
[405390295,1771135839272,-336.0,0.000186,2]
[405390296,1771135839282,-336.0,0.000186,2]
[405390297,1771135839292,-336.0,0.000186,2]
[405390298,1771135839302,-336.0,0.000186,2]
[405390299,1771135839312,-336.0,0.000186,2]
[405390300,1771135839322,-336.0,0.000186,2]
[405390301,1771135839331,-336.0,0.000186,2]
[405390302,1771135839341,-397.89796391,0.000186,2]
[405390303,1771135839351,-177.0,0.000186,2]
[405390304,1771135839361,-177.0,0.000186,2]
[405390305,1771135839371,-179.87225826,0.000186,2]
[405390306,1771135839381,-7376.42624233,0.00018851,2]
[405390307,1771135839391,-686.0,0.000189,2]
[405390308,1771135839401,-609.0,0.0001898,3]
[405390309,1771135839411,-304.5,0.0001898,3]
[405390310,1771135839421,-152.25,0.0001898,3]
[405390311,1771135839430,-456.75,0.0001898,3]
[405390312,1771135839440,-100000.0,0.0001899,2]
[405390313,1771135839450,-2826.244625,0.00019141,2]
[405390315,1771135839460,-321.80244018,0.0001928,2]
[405390317,1771135839469,-226.97925452,0.00019359,2]
[405390319,1771135839478,-416.56415729,0.0001936,2]
[405390321,1771135839488,-1034.19,0.000194,2]
[405390323,1771135839497,-151.0,0.00019482,2]
[405390325,1771135839506,-151.0,0.00019482,2]
[405390326,1771135839516,-166.0969756,0.00019482,2]
[405390327,1771135839525,-2000.0,0.00019482,2]
[405390328,1771135839534,-2074.0,0.00019482,2]
[405390329,1771135839543,-985.98776754,0.00019482,2]
[405390330,1771135839553,-175.73,0.00019482,2]
[405390331,1771135839563,-195.49235185,0.00019577,7]
[405390332,1771135839573,-324.0,0.00019722,2]
[405390333,1771135839582,-7376.42624233,0.00019802,2]
[405390334,1771135839591,-396.0,0.00019885,2]
[405390335,1771135839601,-2826.244625,0.00019914,2]
[405390336,1771135839614,-367.40644313,0.00019931,2]
[405390337,1771135839628,-6223.6894242,0.00019976,2]
[405390338,1771135839644,-510.4811,0.00019976,2]
[405390339,1771135839658,-510.4811,0.00019976,3]
[405390340,1771135839671,-14641.14840767,0.00019986,2]
[405390342,1771135839686,-340.3178,0.0002,4]
[405390343,1771135839700,-501744.26838724,0.0002,2]
[405390345,1771135839883,-1629.04971599,0.0002,2]
[405390346,1771135840001,-9304.43840288,0.0002,2]
[405390347,1771135840017,-1041.66666667,0.0002,2]
[405390354,1771135845679,-1962.59401194,0.0002,2]
[405395955,1771137031750,-216.82340186,0.00016,2]
[405395956,1771137031760,-652.0,0.00016,2]
[405395957,1771137031770,-400.06856819,0.00017,2]
[405395958,1771137031780,-250.84133324,0.00017569,2]
[405395959,1771137031789,-1200.0,0.00017999,2]
[405395960,1771137031799,-8143.83002199,0.00018,2]
[405395961,1771137031810,-465.7033787,0.00018687,2]
[405395962,1771137031820,-150.0,0.00018803,2]
[405395963,1771137031829,-300.0,0.00018919,2]
[405395964,1771137031839,-4610.2664015,0.0001892,2]
[405395965,1771137031848,-382.40239227,0.00018964,2]
[405395966,1771137031858,-360.46846933,0.00018964,2]
[405395967,1771137031868,-502.00812659,0.00018989,2]
[405395968,1771137031878,-336.69879997,0.00018989,2]
[405395969,1771137031891,-500.0,0.00018989,2]
[405395970,1771137031901,-500.0,0.00018989,2]
[405395973,1771137031911,-6907.96734501,0.0001899,2]
[405395975,1771137031922,-11724.07173522,0.0001899,2]
[405395978,1771137031935,-936.07659149,0.0001899,2]
[405396035,1771137037902,-801.13,0.0001899,2]
[405396036,1771137037914,-30257.47681387,0.0001899,2]
[405396037,1771137037923,-436.31958001,0.0001902,2]
[405396038,1771137037934,-504.0,0.0001912,2]
[405396039,1771137037944,-309.06612527,0.00019347,2]
[405396040,1771137037953,-436.31958,0.00019366,2]
[405396041,1771137037965,-168.0,0.00019542,2]
[405396042,1771137038098,-304.74548572,0.00019564,2]
[405396043,1771137038112,-168.0,0.00019595,2]
[405396044,1771137038122,-688.32430609,0.00019643,2]
[405396045,1771137038132,-648.8432448,0.00019643,2]
[405396046,1771137038142,-436.31958,0.00019711,2]
[405396047,1771137038151,-217.0,0.00019735,2]
[405396048,1771137038161,-168.0,0.00019777,2]
[405396049,1771137038171,-250.0,0.00019788,2]
[405396050,1771137038181,-250.0,0.00019788,2]
[405396051,1771137038191,-250.0,0.00019788,2]
[405396052,1771137038201,-250.0,0.00019788,2]
[405396053,1771137038211,-250.0,0.00019788,2]
[405396055,1771137038220,-500.0,0.00019788,2]
[405396056,1771137038229,-250.0,0.00019788,2]
[405396057,1771137038239,-250.0,0.00019788,2]
[405396058,1771137038248,-500.0,0.00019788,2]
[405396059,1771137038258,-250.0,0.00019788,2]
[405396060,1771137038268,-250.0,0.00019788,2]
[405396061,1771137038277,-500.0,0.00019788,2]
[405396062,1771137038286,-353.38843013,0.00019788,2]
[405396063,1771137038296,-250.0,0.00019788,2]
[405396064,1771137038305,-500.0,0.00019788,2]
[405396065,1771137038314,-250.0,0.00019788,2]
[405396066,1771137038324,-500.0,0.00019788,2]
[405396067,1771137038334,-250.0,0.00019788,2]
[405396068,1771137038344,-500.0,0.00019788,2]
[405396069,1771137038354,-500.0,0.00019788,2]
[405396070,1771137038364,-276.42248092,0.00019788,2]
[405396071,1771137038373,-500.0,0.00019788,2]
[405396072,1771137038383,-500.0,0.00019788,2]
[405396073,1771137038393,-500.0,0.00019788,2]
[405396074,1771137038404,-500.0,0.00019788,2]
[405396075,1771137038414,-500.0,0.00019788,2]
[405396076,1771137038423,-500.0,0.00019788,2]
[405396077,1771137038433,-500.0,0.00019788,2]
[405396078,1771137038442,-194.72792766,0.00019788,2]
[405396079,1771137038452,-500.0,0.00019788,2]
[405396080,1771137038461,-500.0,0.00019788,2]
[405396081,1771137038472,-201.93286099,0.00019788,2]
[405396082,1771137038481,-500.0,0.00019788,2]
[405396083,1771137038491,-500.0,0.00019788,2]
[405396084,1771137038500,-250.0,0.00019788,2]
[405396085,1771137038509,-417.07633844,0.00019788,2]
[405396087,1771137038519,-250.0,0.00019788,2]
[405396088,1771137038529,-500.0,0.00019788,2]
[405396089,1771137038539,-209.40437684,0.00019788,2]
[405396090,1771137038549,-250.0,0.00019788,2]
[405396091,1771137038559,-250.0,0.00019788,2]
[405396092,1771137038570,-217.15233878,0.00019788,2]
[405396093,1771137038579,-250.0,0.00019788,2]
[405396094,1771137038589,-250.0,0.00019788,2]
[405396095,1771137038599,-225.18697532,0.00019788,2]
[405396096,1771137038608,-250.0,0.00019788,2]
[405396097,1771137038618,-250.0,0.00019788,2]
[405396098,1771137038627,-233.51889341,0.00019788,2]
[405396100,1771137038636,-250.0,0.00019788,2]
[405396101,1771137038646,-250.0,0.00019788,2]
[405396102,1771137038655,-242.15909246,0.00019788,2]
[405396103,1771137038666,-250.0,0.00019788,2]
[405396104,1771137038675,-1807.3,0.0001979,3]
[405396105,1771137038685,-1113.8,0.0001979,3]
[405396106,1771137038695,-556.9,0.0001979,3]
[405396107,1771137038704,-278.45,0.0001979,3]
[405396108,1771137038714,-835.39,0.0001979,3]
[405396109,1771137038723,-67045.85808559,0.000198,2]
[405396153,1771137046314,-251.11897888,0.00019788,2]
[405396154,1771137046324,-224.68202226,0.00019788,2]
[405396155,1771137046334,-250.0,0.00019788,2]
[405396156,1771137046344,-260.4103811,0.00019788,2]
[405396157,1771137046354,-250.0,0.00019788,2]
[405396158,1771137046364,-270.0455652,0.00019788,2]
[405396159,1771137046373,-250.0,0.00019788,2]
[405396160,1771137046383,-153.62610207,0.00019788,2]
[405396161,1771137046392,-250.0,0.00019788,2]
[405396162,1771137046402,-250.0,0.00019788,2]
[405396163,1771137046412,-250.0,0.00019788,2]
[405396164,1771137046422,-250.0,0.00019788,2]
[405396165,1771137046431,-250.0,0.00019788,2]
[405396166,1771137046441,-250.0,0.00019788,2]
[405396167,1771137046451,-2881.7149379,0.000198,2]
[405396169,1771137046612,-7581.19381294,0.000198,2]
[405396171,1771137046856,-20596.304983,0.000198,2]
[405396172,1771137046922,-73534.23571699,0.000198,2]
[405396173,1771137046935,-2680.87889995,0.000198,2]
[405396174,1771137046947,-467.54697786,0.000198,2]
[405396265,1771137100571,-492.56579867,0.00018919,2]
[405396266,1771137100603,-0.3302569,0.00018919,2]
[405396285,1771137129786,-192.56579867,0.00018918,2]
[405396286,1771137129813,-107.43420133,0.00018918,2]
[405396400,1771137159036,-42.56579867,0.00019395,2]
[405396401,1771137159063,-107.43420133,0.00019395,2]
[405396669,1771137450205,393.0,0.00030137,120]
[405397054,1771137889560,-654.60638262,0.00019577,7]
[405397055,1771137889580,-617.05932162,0.00019577,7]
[405397056,1771137889606,-401.58197473,0.0001993,7]
[405397057,1771137889628,-2000.0,0.0002,7]
[405397058,1771137889649,-4984.18917231,0.00021,5]
[405397059,1771137889670,-1087.8521277,0.00021,15]
[405397060,1771137889691,-153.00152254,0.00021,5]
[405397061,1771137889723,-571.84131543,0.0002196,10]
[405397062,1771137889741,-172.96470453,0.00022,10]
[405397064,1771137889761,-160.86,0.00022,7]
[405397065,1771137889786,-271.12097282,0.000225,5]
[405397066,1771137889812,-930.77,0.000233,14]
[405397067,1771137889832,-2000.0,0.00023333,7]
[405397068,1771137889851,-27163.11847748,0.000234,7]
[405397230,1771137932093,-4091.74187789,0.00017924,3]
[405397231,1771137932114,-3228.74145316,0.00018105,3]
[405397232,1771137932135,-150.0,0.00018381,2]
[405397233,1771137932164,-245.0,0.00018848,2]
[405397234,1771137932185,-2023.920016,0.00018849,2]
[405397235,1771137932208,-284.0,0.00019278,2]
[405397236,1771137932231,-234.0,0.00019358,2]
[405397237,1771137932252,-300.0,0.00019358,2]
[405397238,1771137932273,-300.0,0.00019358,2]
[405397239,1771137932294,-207.0,0.00019358,2]
[405397240,1771137932315,-500.0,0.00019359,2]
[405397241,1771137932338,-500.0,0.00019359,2]
[405397242,1771137932361,-500.0,0.00019359,2]
[405397243,1771137932383,-500.0,0.00019359,2]
[405397244,1771137932405,-483.77601866,0.00019359,2]
[405397245,1771137932427,-281.0737213,0.00019359,2]
[405397246,1771137932451,-175.35573728,0.00019359,2]
[405397247,1771137932471,-3697.45187271,0.0001936,2]
[405397286,1771137972075,383.23205317,0.00013273,2]
[405397372,1771137994120,-5000.0,0.00017568,3]
[405397373,1771137994140,-5000.0,0.00017745,3]
[405397375,1771137994162,-300.0,0.0001922,2]
[405397376,1771137994187,-500.0,0.0001922,2]
[405397377,1771137994209,-500.0,0.0001922,2]
[405397378,1771137994228,-5000.0,0.00019221,2]
[405397379,1771137994251,-285.084656,0.00019415,2]
[405397522,1771138052079,-511.5546148,0.0001856,2]
[405397523,1771138052100,-5000.0,0.00018839,2]
[405397524,1771138052120,-2943.62514633,0.00019029,2]
[405397525,1771138052140,-300.0,0.0001922,2]
[405397526,1771138052159,-2265.64769475,0.00019221,2]
[405397527,1771138052183,-150.0,0.00019318,2]
[405397528,1771138052205,-1241.915344,0.00019415,2]
[405397529,1771138052227,-284.0,0.00019456,2]
[405397530,1771138052247,-284.0,0.0001946,2]
[405397531,1771138052269,-16695.33760427,0.00019788,2]
[405397532,1771138052291,-924.70260859,0.00019788,2]
[405397533,1771138052311,-1222.46396761,0.00019788,2]
[405397534,1771138052332,-1152.34560276,0.00019788,2]
[405397535,1771138052353,-234.59274444,0.00019788,2]
[405397536,1771138052374,-500.0,0.00019788,2]
[405397537,1771138052395,-500.0,0.00019788,2]
[405397538,1771138052416,-500.0,0.00019788,2]
[405397539,1771138052436,-500.0,0.00019788,2]
[405397540,1771138052456,-500.0,0.00019788,2]
[405397541,1771138052476,-500.0,0.00019788,2]
[405397542,1771138052496,-500.0,0.00019788,2]
[405397543,1771138052516,-500.0,0.00019788,2]
[405397545,1771138052538,-500.0,0.00019788,2]
[405397546,1771138052559,-500.0,0.00019788,2]
[405397547,1771138052579,-500.0,0.00019788,2]
[405397548,1771138052600,-500.0,0.00019788,2]
[405397549,1771138052619,-250.0,0.00019788,2]
[405397550,1771138052639,-500.0,0.00019788,2]
[405397551,1771138052659,-250.0,0.00019788,2]
[405397552,1771138052680,-250.0,0.00019788,2]
[405397553,1771138052700,-250.0,0.00019788,2]
[405397554,1771138052720,-250.0,0.00019788,2]
[405397555,1771138052741,-395.30325577,0.00019788,2]
[405397556,1771138052761,-309.0,0.0001979,2]
[405397557,1771138052782,-1252.15,0.0001979,3]
[405397558,1771138052802,-626.07,0.0001979,3]
[405397559,1771138052824,-313.04,0.0001979,3]
[405397560,1771138052844,-156.52,0.0001979,3]
[405397561,1771138052864,-469.56,0.0001979,3]
[405397562,1771138052886,-1844.0768936,0.00019795,2]
[405397563,1771138052907,-18982.1858992,0.00019795,2]
[405397564,1771138052928,-1388.6928181,0.00019795,2]
[405397565,1771138052947,-119694.30647261,0.000198,2]
[405397566,1771138052966,-467.54697786,0.000198,2]
[405397567,1771138052986,-509.84,0.000198,2]
[405397568,1771138053006,-667499.71110931,0.000198,2]
[405397569,1771138053090,-158104.218042,0.000198,2]
[405398801,1771138231924,-566.01503087,0.000196,2]
[405398859,1771138238405,-50.45337486,0.000196,2]
[405398861,1771138238414,-5000.0,0.00019602,2]
[405398863,1771138238424,-300.0,0.00019787,2]
[405398864,1771138238433,-308.95407505,0.00019788,2]
[405398866,1771138238443,-422.26694,0.00019788,2]
[405398868,1771138238453,-782.59,0.0001979,3]
[405398870,1771138238463,-391.29,0.0001979,3]